Cogmind - Beta 17.1 @@@ ROGUE MODE // 2026.09.02 @ 01:28:22 Player: Somberlain Result: Destroyed by S-10 Pest with Light Assault Rifle Performance ------------- Evolutions (0) 0 Regions Visited (2) 400 Robots Destroyed (18) 90 Value Destroyed (461) 461 Prototype IDs (0) 0 Alien Tech Used (0) 0 Bonus (0) 0 TOTAL SCORE: 951 Bonus ------- None Cogmind --------- Core Integrity 0/250 Matter 300/300 Energy 250/250 System Corruption 0% Temperature Cool (14) Movement Walking (120) Location -10/Mines Parts ------- > --- POWER (1) -------- Ion Engine > --- PROPULSION (2) --- Aluminum Leg Aluminum Leg > --- UTILITY (2) ------ Improved Heat Sink Small Storage Unit > --- WEAPON (2) ------- Small Laser Particle Gun > --- INVENTORY (8) ---- Ion Engine Aluminum Leg Heat Sink Medium Storage Unit Peak State ------------ > --- POWER ------------ Ion Engine > --- PROPULSION ------- Aluminum Leg Aluminum Leg > --- UTILITY ---------- Improved Heat Sink Small Storage Unit > --- WEAPON ----------- Small Laser Particle Gun > --- INVENTORY -------- Ion Engine Heat Sink Medium Storage Unit [Rating: 10] Favorites ----------- Power Ion Engine Engine Ion Engine Power Core Light Nuclear Core Propulsion Aluminum Leg Leg Aluminum Leg Utility Small Storage Unit Device Heat Sink Storage Small Storage Unit Weapon Small Laser Energy Gun Small Laser Build | -11 -10 -10 ------- Run | Yrd Mat Min Slots Evolved . | . . . Power . | . . . Propulsion . | . . . Utility . | . . . Weapon . | . . . Parts Attached 16 | 6 1 9 Power 4 | 1 . 3 Engine 2 | 1 . 1 Core 2 | . . 2 Reactor . | . . . Propulsion 4 | 2 . 2 Treads . | . . . Leg 4 | 2 . 2 Wheel . | . . . Hover . | . . . Flight . | . . . Utility 4 | 1 1 2 Device 2 | . . 2 Storage 2 | 1 1 . Processor . | . . . Hackware . | . . . Protection . | . . . Artifact . | . . . Weapon 4 | 2 . 2 Energy Gun 4 | 2 . 2 Energy Cannon . | . . . Ballistic Gun . | . . . Ballistic Cannon . | . . . Launcher . | . . . Special Weapon . | . . . Impact Weapon . | . . . Slashing Weapon . | . . . Piercing Weapon . | . . . Special Melee Weapon . | . . . Unidentified Prototypes . | . . . Parts Lost 6 | . . 6 Power 2 | . . 2 Propulsion 2 | . . 2 Utility . | . . . Weapon 2 | . . 2 Highest Loss Streak 3 | . . 3 To Critical Strikes . | . . . Average Backups 1 | . . 3 Power . | . . . Propulsion . | . . . Utility 1 | . . 1 Weapon . | . . . Tool/Special . | . . . Unused Backups 2 | . 1 1 Power . | . . . Propulsion 1 | . . 1 Utility 1 | . 1 . Weapon . | . . . Tool/Special . | . . . Average Slot Usage (%) 84 | . 85 82 Engine 10 | . 14 5 Core 1 | . . 4 Leg 24 | . 28 19 Device 5 | . . 12 Storage 14 | . 14 14 Energy Gun 27 | . 28 26 Peak Build Rating 10 | 6 7 10 Average Rating 6 | 4 6 7 On Entrance 4 | . 6 6 Avg Prop Armor Cover (%) . | . . . Naked Turns . | . . . Heaviest Build 15 | 12 12 15 Greatest Support 20 | 20 20 20 Greatest Overweight (x) 4 | 3 . 4 Average Overweight (x) . | . . . Largest Inventory Capacity 10 | 8 10 8 Average Capacity 7 | 7 8 8 Most Carried 4 | . 1 4 Average Carried 1 | . . 3 Final Capacity 8 | 8 8 8 Final Carried 4 | . 1 4 Class Distribution -------------------- 87% | Mutant 12% | Scavenger-Mutant Dominant Class ---------------- Mutant | -10/Materials Mutant | -10/Mines Resources | -11 -10 -10 ----------- Run | Yrd Mat Min Matter Collected 365 | 174 91 100 Remotely . | . . . Salvage Created 516 | . 152 364 Parts 34 | . 5 29 Haulers Intercepted . | . . . Recyclers Shooed . | . . . Parts Field Recycled . | . . . Retrieved Matter . | . . . Parts Self-Destructed . | . . . Prevented . | . . . Parts Restored . | . . . Kills | -11 -10 -10 ------- Run | Yrd Mat Min Combat Hostiles Destroyed 18 | . 4 14 Guns 18 | . 4 14 Classes Destroyed 2 | . 1 1 Swarmer 9 | . . 9 Grunt 9 | . 4 5 Best Kill Streak 4 | . 2 4 Combat Bots Only 4 | . 2 4 Max Kills in Single Turn 2 | . 1 2 Gunslinging 1 | . . 1 Exploded . | . . . Melee . | . . . Uniques/NPCs Destroyed . | . . . Combat | -11 -10 -10 -------- Run | Yrd Mat Min Hostile Shots Fired 102 | . 23 79 Missed 25 | . 8 17 Hits 77 | . 15 62 Projectile 77 | . 15 62 Damage Taken 913 | . 205 708 Core 252 | . 29 223 Absorbed by Shields . | . . . Core Remaining (%) 100 | 100 . . Volleys Fired 70 | . 24 46 Largest 2 | . 2 2 Hottest 105 | . 80 105 Shots Fired 131 | . 48 83 Gun 131 | . 48 83 Cannon . | . . . Launcher . | . . . Special . | . . . Kinetic . | . . . Thermal 131 | . 48 83 Explosive . | . . . Electromagnetic . | . . . Robot Hit Streak 12 | . 12 9 Robot Miss Streak 3 | . 3 3 Penetration Max . | . . . Secondary Targets 4 | . 1 3 Max Gunslinging Chain 1 | . 1 1 Shots Hit Robots 89 | . 31 58 Core Hits 32 | . 10 22 Critical Kills . | . . . Critical Parts Destroyed . | . . . Critical Strikes . | . . . Melee Attacks . | . . . Impact . | . . . Slashing . | . . . Piercing . | . . . Sneak Attacks . | . . . Combat Hostiles . | . . . Follow-up Attacks . | . . . Damage Inflicted 991 | . 333 658 Guns 990 | . 332 658 Cannons . | . . . Explosions . | . . . Melee . | . . . Ramming 1 | . 1 . Kinetic . | . . . Thermal 990 | . 332 658 Explosive . | . . . Electromagnetic . | . . . Impact . | . . . Slashing . | . . . Piercing . | . . . Highest Corruption . | . . . Average Corruption . | . . . Corruption Purged . | . . . Corruption Blocked . | . . . Overload Shots . | . . . Overflow Damage . | . . . Projectiles . | . . . Explosions . | . . . Melee . | . . . Knockbacks . | . . . Impact . | . . . Kinetic . | . . . Secondary . | . . . Self-Inflicted Damage . | . . . Shots . | . . . Rammed . | . . . Targets Rammed 1 | . 1 . Kicked 1 | . 1 . Crushed . | . . . Highest Temperature 273 | . 243 273 Average Temperature 83 | . 77 92 Received Heat Transfer 405 | . 120 285 Siege Activations . | . . . Martial Activations . | . . . Shielding Activations . | . . . Robots Disrupted . | . . . Combat Hostiles . | . . . Robots Corrupted . | . . . Combat Hostiles . | . . . Parts Fried . | . . . Impact Corruptions . | . . . Robots Melted . | . . . Combat Hostiles . | . . . Parts Melted 4 | . . 4 Heat Transferred 2274 | . 775 1499 Parts Sabotaged . | . . . Parts Stolen . | . . . Parts Stripped . | . . . Power Chain Reactions . | . . . Alert | -11 -10 -10 ------- Run | Yrd Mat Min Maximum Alert Level 1 | . . 1 Low Security (%) 97 | 100 100 94 Level 1 2 | . . 5 Level 2 . | . . . Level 3 . | . . . Level 4 . | . . . Level 5 . | . . . High Security . | . . . Max Security . | . . . Peak Influence 244 | . 42 244 Initial 9 | . . 9 Average 49 | . 6 116 Influence Increases 555 | . 100 455 Destroy 0b10 Robot/C 360 | . 80 280 Destroy Leader 90 | . 20 70 Lose Combat Pursuer 105 | . . 105 Influence Decreases 321 | . 74 247 Entered New Map 17 | . . 17 Time Decay 244 | . 74 170 Lost Part 60 | . . 60 Squads Dispatched 1 | . 1 . Investigation . | . . . Extermination . | . . . Reinforcement 1 | . 1 . Assault . | . . . Garrison . | . . . Intercept . | . . . Searches Triggered . | . . . Construction Impeded . | . . . Haulers Reinforced . | . . . Active Scanning Responses . | . . . Cargo Convoy Interrupts . | . . . Stealth | -11 -10 -10 --------- Run | Yrd Mat Min Distress Signals 1 | . 1 . Communications Jammed . | . . . Distress Signals . | . . . Times Spotted 28 | . 8 20 Peak Tracking Total 5 | . 5 5 Tactical Retreats 4 | . . 4 Traps | -11 -10 -10 ------- Run | Yrd Mat Min Traps Triggered . | . . . Indirectly . | . . . Trap Hack Attempts . | . . . Triggered . | . . . Disarmed . | . . . Reprogrammed . | . . . Reused . | . . . Traps Extracted . | . . . Installed . | . . . Triggered . | . . . Machines | -11 -10 -10 ---------- Run | Yrd Mat Min Machines Disabled . | . . . Max in Single Turn . | . . . Machines Repaired . | . . . Machines Dismantled . | . . . Machines Sabotaged . | . . . Overloaded Fab Kills . | . . . Hacking | -11 -10 -10 --------- Run | Yrd Mat Min Machines Accessed 3 | . 3 . Terminals 3 | . 3 . Fabricators . | . . . Repair Stations . | . . . Recycling Units . | . . . Scanalyzers . | . . . Garrison Access . | . . . Total Hacks 5 | . 5 . Successful 1 | . 1 . Failed 4 | . 4 . Catastrophic . | . . . Database Lockouts . | . . . Manual 4 | . 4 . Terminals 5 | . 5 . Fabricators . | . . . Repair Stations . | . . . Recycling Units . | . . . Scanalyzers . | . . . Garrison Access . | . . . Terminal Hacks 1 | . 1 . Record 1 | . 1 . Fabricator Hacks . | . . . Repair Station Hacks . | . . . Recycling Unit Hacks . | . . . Scanalyzer . | . . . Garrison Access Hacks . | . . . Unauthorized Hacks . | . . . Terminals . | . . . Fabricators . | . . . Repair Stations . | . . . Recycling Units . | . . . Scanalyzers . | . . . Garrison Access . | . . . Data Cores Recovered . | . . . Used . | . . . Hacking Detections 2 | . 2 . Full Trace Events . | . . . Feedback Events . | . . . Feedback Blocked . | . . . Robot Schematics Acquired . | . . . Robots Built . | . . . Authchips . | . . . Time . | . . . Total Robot Build Rating . | . . . Part Schematics Acquired . | . . . Parts Built . | . . . Authchips . | . . . Time . | . . . Total Part Build Rating . | . . . Part Studies Acquired . | . . . Parts Repaired . | . . . Time . | . . . Parts Recycled . | . . . Recycled Matter . | . . . Retrieved Matter . | . . . Retrieved Components . | . . . Parts Scanalyzed . | . . . Part Schematics Acquired . | . . . Parts Damaged . | . . . Bothacking | -11 -10 -10 ------------ Run | Yrd Mat Min Used RIF Installer . | . . . Robots Hacked . | . . . Non-combat . | . . . Combat . | . . . Robot Hacks Applied . | . . . Relay Couplers Released . | . . . Fabnet Peak Effective % . | . . . Robots Rewired . | . . . Allies Hacked . | . . . Hacks Repelled . | . . . Allies | -11 -10 -10 -------- Run | Yrd Mat Min Total Allies . | . . . Largest Group . | . . . Highest-Rated Group . | . . . Highest-Rated Ally . | . . . Total Orders . | . . . Ally Attacks . | . . . Total Damage . | . . . Kills . | . . . Allies Corrupted . | . . . Allies Melted . | . . . Intel | -11 -10 -10 ------- Run | Yrd Mat Min Active Infowar (turns) . | . . . Robot Analysis Total . | . . . Derelict Logs Recovered . | . . . Drone Launches . | . . . Drone Recoveries . | . . . Exploration | -11 -10 -10 ------------- Run | Yrd Mat Min Turns Passed 872 | 55 471 346 Spaces Moved 404 | 36 211 157 Core 28 | 12 . 16 Treads . | . . . Legs 376 | 24 211 141 Wheels . | . . . Hover . | . . . Flight . | . . . Fastest Speed 50 | 50 120 120 Average Speed 123 | 130 120 125 Slowest Speed 250 | 200 120 250 Overloaded Moves . | . . . Propulsion Burnouts . | . . . Robots Hopped . | . . . Potential Cave-ins . | . . . Cave-ins Triggered . | . . . Exploration Rate (%) 26 | 3 35 42 Regions Visited 2 Branch Regions 1 Pre-discovered Areas . | . . . Known Exits Taken . | . . . Unknown Exits Taken 2 | 1 1 . Scrap Searched . | . . . Spaces Dug . | . . . Terrain Destroyed . | . . . Melee . | . . . Projectile . | . . . AOE . | . . . Terrain Rammed . | . . . Walls Destroyed . | . . . Machines Disabled . | . . . Actions | -11 -10 -10 --------- Run | Yrd Mat Min Total 641 | 41 381 219 Wait 147 | . 142 5 Move 402 | 35 210 157 Hop . | . . . Pick Up 2 | . 1 1 Fast Attach 13 | 6 1 6 Attach 1 | . . 1 Detach 1 | . 1 . Swap 3 | . . 3 Drop 1 | . 1 . Fire 70 | . 24 46 Melee . | . . . Ram . | . . . Kick 1 | . 1 . Crush . | . . . Escape Stasis . | . . . Rewire . | . . . Trap . | . . . Miscellaneous . | . . . Route ------- -11/Scrapyard -10/Materials -10/Mines History --------- Turn | Location | Event 9 | -11/Scrapyard | Discovered new exit (range 16) 56 | -11/Scrapyard | Entered Materials 301 | -10/Materials | Build established: Mutant 516 | -10/Materials | Discovered new exit (range 7) 527 | -10/Materials | Entered Mines 535 | -10/Mines | Met a Derelict bent on vengeance 696 | -10/Mines | Core integrity fell below 50% 741 | -10/Mines | Core integrity fell below 20% 789 | -10/Mines | Lost 3 parts (1p2w) 873 | -10/Mines | Destroyed by S-10 Pest with Light Assault Rifle Last Messages --------------- 00697_ Aluminum Leg destroyed. 00713_ Particle Gun melted. 00713_ G-47 Trooper destroyed. 00728_ Acquired 10 matter. 00731_ Acquired Lgt. Nuclear Core. 00732_ Acquired 10 matter. 00748_ Sml. Laser destroyed. 00749_ G-34 Mercenary destroyed. 00754_ Lgt. Nuclear Core destroyed. 00758_ Sml. Laser destroyed. 00760_ Acquired 10 matter. 00768_ Lgt. Nuclear Core melted. 00768_ G-47 Trooper destroyed. 00772_ Acquired Particle Gun. 00773_ Acquired 10 matter. 00779_ Acquired Aluminum Leg. 00785_ Acquired Ion Engine. 00786_ Acquired 30 matter. 00789_ Acquired Aluminum Leg. 00849_ S-10 Pest destroyed. Map ----- +----------------------------------------------------+ | ?? """ ???????????#### #?????????????? | | ? #?????????????### ### #?????????????? | | ? #???????????????## ##??????????????????? | | #???####???????????###### #???????????????????? | | ???????????????????# #### #?????????????? | | ???????????????????# ##### #?????????????? | | ?????????????????### #???# ### #?????????????? | | ????????????????## ##??## ##??????????????????? | | ????????### ##### ##???###???????????????????? | | ????????# ##????????????????????????? | | ????????# ##???????????????????????? | | ????????# ###### #####???????????????????? | | ???????????????#### #### #?????????????? | | ??????????????????## #?????????????? | | ???????????????????## ### ## #?????????????? | | ????????????????????####?# #########?????????????? | | ?????????????????????????# #?????????????????????? | | ????????????????????????## #?????????????????????? | | ???????????????????????## ##????????????????????? | | ??????????????????????## ##????????? ?????????? | | ???????????####??????## ###### ????????? | | ?????????? #### ????????? | | ?????????????# ????????? | | ?????????????## s######## ????????? | | ??????????????# ###==*##????????????????????? | | ??????????????# #??##@#########??????????????? | | ??????????????## #????#*= [% #???????? | | ???????????????## ?????# #########??????????????? | | ????????????????# ????? #??????????????????????? | | ???????????????? ????? ??????????????????????? | | ??????????????? ?????# ??????????????????????? | | ?????????????????????# """ ??????????????????????? | | ????????????????????? """ ??????????????????????? | | ???????????????????? """ ??????????????????????? | | ??????????????????? ??????????????????????? | | ?????????????????? ###???? ?????????????????????? | | ????????????????? ??????? ?????????????????????? | | ????????????????##????????##?????????????????????? | | ?????????????????????????????????????????????????? | | ?????????????????????????????????????????????????? | | ?????????????????????????????????????????????????? | | ?????????????????????????????????????????????????? | | ?????????????????????????????????????????????????? | | | | | | | | | | | | | | | +----------------------------------------------------+ Best States ------------- Heat Dissipation 39 Energy Generation 14 Energy Capacity 250 Matter Stores 300 Matter Capacity 300 Sight Range 16 Terrain Scan Density 10 Evasion (%) 55 Item Schematics ----------------- None Robot Schematics ------------------ None Fabricated ------------ Nothing Repaired ---------- Nothing Studied --------- None Alien Tech Used ----------------- None Achievements -------------- None Challenges ------------ None Game ------ Seed CentriumDeliveryCannon Manual? 0 Play Time 00:06:27 Cumulative 50.4 hours Start 2026.09.02 @ 01:23:39 End 2026.09.02 @ 01:28:22 Sessions 1 Manual Loads 0 Difficulty Rogue Special Mode None Game No. 74 Rogue 74 Adventurer 0 Explorer 0 Win Type - Total 0 Types 0/0/0/0/0/0/0/0/0/0 Lore% 33 Gallery% 34 Achievement% 30 Wizard Run 0 Options --------- Layout 1 ASCII 0 Keyboard 0 Movement Mouse Keybinds 0 Fullscreen 2 Font 24/Smallcaps Map View 50x35 Zoom Use 0% Tactical HUD 1 Map Filters NONE Filters NONE Steam 1 RUN: a77dfac9-bdf7-4d87-9bf5-3f7d8cbdf19f